Cogmind - Beta 15 @@@ ROGUE MODE // 2025.06.06 @ 19:56:42 Player: irisidem Result: Destroyed by A7-QWW(R) with Subdweller Laser Performance ------------- Evolutions (0) 0 Regions Visited (3) 600 Robots Destroyed (18) 90 Value Destroyed (452) 452 Prototype IDs (0) 0 Alien Tech Used (0) 0 Bonus (0) 0 TOTAL SCORE: 1142 Bonus ------- None Cogmind --------- Core Integrity 0/250 Matter 265/300 Energy 250/250 System Corruption 2% Temperature Cool (6) Movement Walking (130) Location -10/Subcaves Parts ------- > --- POWER (1) -------- Ion Engine > --- PROPULSION (2) --- Aluminum Leg Makeshift Leg > --- UTILITY (2) ------ Small Storage Unit Makeshift Thermal Plating > --- WEAPON (2) ------- (None) > --- INVENTORY (8) ---- Subdweller Power Source Subdweller Monowheel Machine Analyzer Subdweller Optics Terrain Scanner Terrain Scan Processor Peak State ------------ > --- POWER ------------ Ion Engine > --- PROPULSION ------- Aluminum Leg Makeshift Leg > --- UTILITY ---------- Small Storage Unit Makeshift Thermal Plating > --- WEAPON ----------- Subdweller Machine Gun Subdweller Machine Gun > --- INVENTORY -------- Subdweller Power Source Machine Analyzer Subdweller Optics Terrain Scanner Terrain Scan Processor [Rating: 16] Favorites ----------- Power Ion Engine Engine Ion Engine Propulsion Aluminum Leg Leg Aluminum Leg Utility Small Storage Unit Device Heat Sink Storage Small Storage Unit Processor Signal Interpreter Protection Makeshift Thermal Plating Weapon Grenade Launcher Energy Gun EM Pulse Gun Energy Cannon Subdweller Beam Cannon Ballistic Gun Assault Rifle Launcher Grenade Launcher Special Weapon Mining Laser Build | -11 -10 -10 -10 ------- Run | Yrd Mat Min Sub Slots Evolved . | . . . . Power . | . . . . Propulsion . | . . . . Utility . | . . . . Weapon . | . . . . Parts Attached 20 | 6 5 1 8 Power 2 | 1 . . 1 Engine 2 | 1 . . 1 Core . | . . . . Reactor . | . . . . Propulsion 6 | 2 2 . 2 Treads . | . . . . Leg 6 | 2 2 . 2 Wheel . | . . . . Hover . | . . . . Flight . | . . . . Utility 4 | 1 1 1 1 Device 1 | . 1 . . Storage 1 | 1 . . . Processor 1 | . . 1 . Hackware . | . . . . Protection 1 | . . . 1 Artifact . | . . . . Weapon 8 | 2 2 . 4 Energy Gun 2 | 1 1 . . Energy Cannon 1 | . . . 1 Ballistic Gun 3 | 1 . . 2 Ballistic Cannon . | . . . . Launcher 1 | . 1 . . Special Weapon 1 | . . . 1 Impact Weapon . | . . . . Slashing Weapon . | . . . . Piercing Weapon . | . . . . Special Melee Weapon . | . . . . Unidentified Prototypes . | . . . . Parts Lost 4 | . . . 4 Power 1 | . . . 1 Propulsion 2 | . . . 2 Utility . | . . . . Weapon 1 | . . . 1 Highest Loss Streak 3 | . . . 3 To Critical Strikes . | . . . . Average Backups 6 | 2 5 8 7 Power . | . 1 1 . Propulsion 1 | . 1 1 1 Utility 2 | . 1 4 3 Weapon 1 | 1 1 2 1 Tool/Special . | . . . . Unused Backups 10 | . 3 1 6 Power 1 | . . . 1 Propulsion 2 | . 1 . 1 Utility 5 | . . 1 4 Weapon 2 | . 2 . . Tool/Special . | . . . . Average Slot Usage (%) 94 | . 94 100 93 Engine 13 | . 14 14 13 Leg 27 | . 28 28 27 Device 3 | . 8 8 . Storage 14 | . 14 14 14 Processor 5 | . . 5 8 Protection 3 | . . . 5 Energy Gun 4 | . 10 14 1 Energy Cannon 4 | . . . 7 Ballistic Gun 7 | . 11 . 6 Launcher 5 | . 6 14 4 Special Weapon 1 | . . . 3 Peak Build Rating 16 | 6 7 7 16 Average Rating 9 | 3 6 7 10 On Entrance 5 | . 6 7 7 Naked Turns . | . . . . Heaviest Build 22 | 12 14 14 22 Greatest Support 30 | 20 20 20 30 Greatest Overweight (x) 1 | . . . 1 Average Overweight (x) . | . . . . Largest Inventory Capacity 8 | 8 8 8 8 Average Capacity 7 | 7 8 8 8 Most Carried 8 | 4 8 8 8 Average Carried 6 | 2 5 7 7 Final Capacity 8 | 8 8 8 8 Final Carried 8 | 2 8 7 6 Class Distribution -------------------- 100% | Mutant Dominant Class ---------------- Mutant | -10/Materials Mutant | -10/Mines Mutant | -10/Subcaves Resources | -11 -10 -10 -10 ----------- Run | Yrd Mat Min Sub Matter Collected 615 | 222 206 . 187 Remotely . | . . . . Salvage Created 522 | . 263 . 259 Parts 39 | . 19 . 20 Haulers Intercepted 1 | . 1 . . Recyclers Shooed . | . . . . Parts Field Recycled . | . . . . Retrieved Matter . | . . . . Parts Self-Destructed 23 | . . . 23 Prevented . | . . . . Kills | -11 -10 -10 -10 ------- Run | Yrd Mat Min Sub Combat Hostiles Destroyed 15 | . 7 . 8 Guns 9 | . 4 . 5 Cannons 2 | . . . 2 AOE 3 | . 3 . . Classes Destroyed 6 | . 5 . 1 Builder 1 | . 1 . . Hauler 1 | . 1 . . Watcher 1 | . 1 . . Swarmer 6 | . 3 . 3 Grunt 4 | . 4 . . Subdweller 5 | . . . 5 Best Kill Streak 6 | . 6 . 3 Combat Bots Only 4 | . 4 . 3 Max Kills in Single Turn 2 | . 2 . 1 Gunslinging . | . . . . Exploded 2 | . 2 . . Melee . | . . . . Uniques/NPCs Destroyed . | . . . . Combat | -11 -10 -10 -10 -------- Run | Yrd Mat Min Sub Hostile Shots Fired 79 | . 26 . 53 Missed 20 | . 8 . 12 Hits 59 | . 18 . 41 Projectile 59 | . 18 . 41 Part Disruptions 1 | . 1 . . Damage Taken 1019 | . 233 . 786 Core 256 | . 26 . 230 Absorbed by Shields . | . . . . Ignored by Resistances 14 | . . . 14 Core Remaining (%) 100 | 100 . . . Volleys Fired 69 | . 33 . 36 Largest 2 | . 2 . 2 Hottest 180 | . 60 . 180 Shots Fired 98 | . 51 . 47 Gun 77 | . 47 . 30 Cannon 14 | . . . 14 Launcher 4 | . 4 . . Special 3 | . . . 3 Kinetic 50 | . 23 . 27 Thermal 17 | . . . 17 Explosive 4 | . 4 . . Electromagnetic 27 | . 24 . 3 Robot Hit Streak 10 | . 10 . 6 Robot Miss Streak 5 | . 5 . 3 Penetration Max . | . . . . Secondary Targets 1 | . 1 . . Max Gunslinging Chain 1 | . 1 . . Shots Hit Robots 48 | . 26 . 22 Core Hits 23 | . 15 . 8 Critical Kills 2 | . . . 2 Critical Parts Destroyed 1 | . 1 . . Critical Strikes 3 | . 1 . 2 Meltdown 1 | . . . 1 Destroy 2 | . 1 . 1 Melee Attacks . | . . . . Impact . | . . . . Slashing . | . . . . Piercing . | . . . . Sneak Attacks . | . . . . Combat Hostiles . | . . . . Follow-up Attacks . | . . . . Damage Inflicted 1032 | . 548 . 484 Guns 577 | . 357 . 220 Cannons 240 | . . . 240 Explosions 191 | . 191 . . Melee . | . . . . Ramming . | . . . . Kinetic 358 | . 173 . 185 Thermal 288 | . 24 . 264 Explosive 167 | . 167 . . Electromagnetic 219 | . 184 . 35 Impact . | . . . . Slashing . | . . . . Piercing . | . . . . Highest Corruption 2 | . 2 2 2 Average Corruption 2 | . 2 2 2 Corruption Purged . | . . . . Corruption Blocked . | . . . . Effects 15 | . 4 3 8 Message Errors 2 | . . 1 1 Matter Fused 6 | . 1 . 5 Heat Flow Errors 2 | . 1 1 . Energy Discharges 2 | . 1 . 1 Data Loss (minor) 1 | . . 1 . Misfires 1 | . 1 . . Weapon Failures 1 | . . . 1 Overload Shots . | . . . . Overflow Damage . | . . . . Projectiles . | . . . . Explosions . | . . . . Melee . | . . . . Knockbacks . | . . . . Impact . | . . . . Kinetic . | . . . . Secondary . | . . . . Self-Inflicted Damage . | . . . . Shots . | . . . . Rammed . | . . . . Targets Rammed . | . . . . Kicked . | . . . . Crushed . | . . . . Highest Temperature 226 | . 226 106 9 Average Temperature 54 | . 72 64 5 Received Heat Transfer 225 | . 102 . 123 Siege Activations . | . . . . Martial Activations . | . . . . Shielding Activations . | . . . . Robots Disrupted . | . . . . Combat Hostiles . | . . . . Robots Corrupted . | . . . . Combat Hostiles . | . . . . Parts Fried 2 | . 2 . . Impact Corruptions . | . . . . Robots Melted 1 | . . . 1 Combat Hostiles 1 | . . . 1 Parts Melted 5 | . . . 5 Heat Transferred 433 | . 50 . 383 Parts Sabotaged . | . . . . Parts Stolen . | . . . . Parts Stripped . | . . . . Power Chain Reactions 1 | . 1 . . Alert | -11 -10 -10 -10 ------- Run | Yrd Mat Min Sub Maximum Alert Level . | . . . . Low Security (%) 100 | 100 100 100 . Level 1 . | . . . . Level 2 . | . . . . Level 3 . | . . . . Level 4 . | . . . . Level 5 . | . . . . High Security . | . . . . Max Security . | . . . . Peak Influence 117 | . 117 39 . Initial 39 | . . 39 . Average 35 | . 44 18 . Influence Increases 316 | . 246 . 70 Destroy 0b10 Robot/C 200 | . 140 . 60 Destroy 0b10 Robot/NC 15 | . 15 . . Destroy Leader 44 | . 34 . 10 Disable Machine 30 | . 30 . . Destroy Structure 27 | . 27 . . Influence Decreases 316 | . 145 101 70 Entered New Map 62 | . . 62 . Time Decay 244 | . 145 39 60 Lost Part 10 | . . . 10 Squads Dispatched 1 | . 1 . . Investigation . | . . . . Extermination . | . . . . Reinforcement 1 | . 1 . . Assault . | . . . . Garrison . | . . . . Intercept . | . . . . Searches Triggered . | . . . . Construction Impeded . | . . . . Haulers Reinforced . | . . . . Active Scanning Responses . | . . . . Cargo Convoy Interrupts . | . . . . Stealth | -11 -10 -10 -10 --------- Run | Yrd Mat Min Sub Distress Signals 1 | . 1 . . Communications Jammed . | . . . . Distress Signals . | . . . . Times Spotted 23 | . 12 . 11 Peak Tracking Total 4 | . 4 . 3 Tactical Retreats . | . . . . Traps | -11 -10 -10 -10 ------- Run | Yrd Mat Min Sub Traps Triggered 2 | . 2 . . Indirectly . | . . . . Trap Hack Attempts . | . . . . Triggered . | . . . . Disarmed . | . . . . Reprogrammed . | . . . . Reused . | . . . . Traps Extracted . | . . . . Installed . | . . . . Triggered . | . . . . Machines | -11 -10 -10 -10 ---------- Run | Yrd Mat Min Sub Machines Disabled 2 | . 2 . . Max in Single Turn 1 | . 1 . . Machines Repaired . | . . . . Machines Dismantled . | . . . . Machines Sabotaged . | . . . . Overloaded Fab Kills . | . . . . Hacking | -11 -10 -10 -10 --------- Run | Yrd Mat Min Sub Machines Accessed 1 | . 1 . . Terminals 1 | . 1 . . Fabricators . | . . . . Repair Stations . | . . . . Recycling Units . | . . . . Scanalyzers . | . . . . Garrison Access . | . . . . Total Hacks 2 | . 2 . . Successful . | . . . . Failed 2 | . 2 . . Catastrophic . | . . . . Database Lockouts . | . . . . Manual . | . . . . Terminals 2 | . 2 . . Fabricators . | . . . . Repair Stations . | . . . . Recycling Units . | . . . . Scanalyzers . | . . . . Garrison Access . | . . . . Terminal Hacks . | . . . . Fabricator Hacks . | . . . . Repair Station Hacks . | . . . . Recycling Unit Hacks . | . . . . Scanalyzer . | . . . . Garrison Access Hacks . | . . . . Unauthorized Hacks . | . . . . Terminals . | . . . . Fabricators . | . . . . Repair Stations . | . . . . Recycling Units . | . . . . Scanalyzers . | . . . . Garrison Access . | . . . . Data Cores Recovered . | . . . . Used . | . . . . Hacking Detections 1 | . 1 . . Full Trace Events . | . . . . Feedback Events . | . . . . Feedback Blocked . | . . . . Robot Schematics Acquired . | . . . . Robots Built . | . . . . Authchips . | . . . . Time . | . . . . Total Robot Build Rating . | . . . . Part Schematics Acquired . | . . . . Parts Built . | . . . . Authchips . | . . . . Time . | . . . . Total Part Build Rating . | . . . . Parts Repaired . | . . . . Time . | . . . . Parts Recycled . | . . . . Recycled Matter . | . . . . Retrieved Matter . | . . . . Retrieved Components . | . . . . Parts Scanalyzed . | . . . . Part Schematics Acquired . | . . . . Parts Damaged . | . . . . Bothacking | -11 -10 -10 -10 ------------ Run | Yrd Mat Min Sub Used RIF Installer . | . . . . Robots Hacked . | . . . . Non-combat . | . . . . Combat . | . . . . Robot Hacks Applied . | . . . . Relay Couplers Released . | . . . . Fabnet Peak Effective % . | . . . . Robots Rewired . | . . . . Allies Hacked . | . . . . Hacks Repelled . | . . . . Allies | -11 -10 -10 -10 -------- Run | Yrd Mat Min Sub Total Allies . | . . . . Largest Group . | . . . . Highest-Rated Group . | . . . . Highest-Rated Ally . | . . . . Total Orders . | . . . . Ally Attacks . | . . . . Total Damage . | . . . . Kills . | . . . . Allies Corrupted . | . . . . Allies Melted . | . . . . Intel | -11 -10 -10 -10 ------- Run | Yrd Mat Min Sub Active Infowar (turns) . | . . . . Robot Analysis Total . | . . . . Derelict Logs Recovered . | . . . . Drone Launches . | . . . . Drone Recoveries . | . . . . Exploration | -11 -10 -10 -10 ------------- Run | Yrd Mat Min Sub Turns Passed 1522 | 58 459 103 902 Spaces Moved 957 | 44 272 71 570 Core 12 | 12 . . . Treads . | . . . . Legs 945 | 32 272 71 570 Wheels . | . . . . Hover . | . . . . Flight . | . . . . Fastest Speed 50 | 50 120 120 120 Average Speed 127 | 100 120 120 134 Slowest Speed 190 | 120 120 120 190 Overloaded Moves . | . . . . Propulsion Burnouts . | . . . . Robots Hopped . | . . . . Potential Cave-ins . | . . . . Cave-ins Triggered . | . . . . Exploration Rate (%) 23 | 4 41 8 40 Regions Visited 3 Branch Regions 2 Pre-discovered Areas . | . . . . Known Exits Taken 1 | . . 1 . Unknown Exits Taken 2 | 1 1 . . Scrap Searched 2 | . . . 2 Spaces Dug . | . . . . Terrain Destroyed 34 | . 32 . 2 Melee . | . . . . Projectile 2 | . . . 2 AOE 32 | . 32 . . Terrain Rammed . | . . . . Walls Destroyed . | . . . . Machines Disabled . | . . . . Actions | -11 -10 -10 -10 --------- Run | Yrd Mat Min Sub Total 1150 | 57 354 89 650 Wait 56 | . 23 17 16 Move 954 | 43 271 70 570 Hop . | . . . . Pick Up 31 | 8 13 . 10 Fast Attach . | . . . . Attach 14 | 6 1 . 7 Detach . | . . . . Swap 11 | . 7 1 3 Drop 15 | . 6 1 8 Fire 69 | . 33 . 36 Melee . | . . . . Ram . | . . . . Kick . | . . . . Crush . | . . . . Escape Stasis . | . . . . Rewire . | . . . . Trap . | . . . . Miscellaneous . | . . . . Route ------- -11/Scrapyard -10/Materials (discovered 3 exits: [*Mat x2] / [*Min]) -10/Mines -10/Subcaves History --------- Turn | Location | Event 15 | -11/Scrapyard | Discovered new exit (range 15) 59 | -11/Scrapyard | Entered Materials 311 | -10/Materials | Build established: Mutant 318 | -10/Materials | Discovered new exit (range 15) 390 | -10/Materials | Discovered new exit (range 9) 476 | -10/Materials | Discovered new exit (range 13) 518 | -10/Materials | Entered Mines 561 | -10/Mines | Discovered new exit (range 5) 574 | -10/Mines | Identified exit to Subcaves 621 | -10/Mines | Entered Subcaves 622 | -10/Subcaves | Approached by a straggling Scientist 662 | -10/Subcaves | Shifting Twisted Machinery released Sub. Machine Gun 667 | -10/Subcaves | Shifting Twisted Machinery released Mak. System Restoration Module 674 | -10/Subcaves | A swath of the cavern ceiling suddenly collapsed 675 | -10/Subcaves | Shifting Twisted Machinery released Sub. Beam Cannon 743 | -10/Subcaves | Disturbed a concealed Subdweller 1138 | -10/Subcaves | Core integrity fell below 50% 1150 | -10/Subcaves | Core integrity fell below 20% 1159 | -10/Subcaves | A swath of the cavern ceiling suddenly collapsed 1176 | -10/Subcaves | Lost 3 parts (2n1w) 1523 | -10/Subcaves | Destroyed by A7-QWW(R) with Subdweller Laser Last Messages --------------- YU-4TZ(R) destroyed. Dropped Broken Sub. Beam Cannon. Discarded Signal Interpreter. Acquired 19 matter. Derelict Log crushed. 55 Matter crushed. A swath of the cavern ceiling suddenly collapses. Acquired 32 matter. Acquired Sub. Machine Gun. Acquired Sub. Optics. Acquired Sub. Monowheel. Sub. Machine Gun shoots sparks and powers down. Dropped Broken Sub. Machine Gun. Sub. Machine Gun shoots sparks and powers down. Acquired Broken Sub. Machine Gun. Acquired 2 matter. Dropped Broken Sub. Machine Gun. System corrupted: Matter fused (-9). Acquired 12 matter. A7-QWW(R): "SUBSUB!" Map ----- +----------------------------------------------------+ | ?????????????????????? #???? #????# ?????????? | | ????????????????????? #### #????? #?????????? | | ?????????????????????? ## #????? ?????????? | | ???????????????????## " ##????# ?????????? | | ??????????????????? """ ##???# #?????????? | | ?????????????????###""" ###?# ?????????? | | ????????????????##"#" #?# ?????????? | | ??????????????# ? ??# #?????????? | | ???????????????? ##" ??## ##????????? | | ????????????????## #???# #????##### | | ???????????????## #???# ##??## ## | | ??????????????## ?# ###### #### | | ??????????????# ?# ## | | ???????????????# ?# R ## | | ???????????????# ## ##### ## | | ???????????????# #???## #? | | ???????????????# ###### ##????######? | | ???????????????# #????###???????????? | | ???????????????## #??????????????????? | | ??????????????##### ##???##?????????????? | | ??????????????# ### ### #????????????? | | ??????????????# ## #???????????? | | ??????????????# ## ## ##???????????## | | ??????????????# ### #####????????????????## | | ??????????????## ### ##?????????????????????? | | ???????????????# ##?# @#??????????????????????? | | ???????????????## ##?# #??????????????????????? | | ???????????????## #?# ??????????????????????? | | ???????????????# #? ??????????????????????? | | ???????????????# # ?????????????????????? | | ???????????????## ## ?????????????????????? | | ????????????????# ## #????????????????????? | | ????????????????# ### #????????????????????? | | ????????????????# ########????????????????????? | | ????????????????# ##???????????????????????? | | ????????????????# #???????????????????????? | | ????????????????## ##???????????????????????? | | ?????????????????## ##????????##??????????????? | | ?????????????????## ##???????? ####???????????? | | ????????????????## ##??????? % ???????????? | | ???????????????## ##???? % #???????????? | | ???????????????# ###? #????????????? | | ???????????????# ## # % #????????????? | | ???????????????### #?????????? | | ?????????????????## % ?????????? | | ??????????????????## # # ## % ??????????? | | ???????????????????###### % %#???????????????? | | ????????????????????????? ? ##???????????????? | | ??????????????????????????###?##????????????????? | | ????????????????????????????????????????????????? | +----------------------------------------------------+ Best States ------------- Heat Dissipation 35 Energy Generation 10 Energy Capacity 250 Matter Stores 300 Matter Capacity 300 Sight Range 16 Terrain Scan Density 10 Armor Coverage 100 Resistance: TH 10 Evasion (%) 55 Item Schematics ----------------- None Robot Schematics ------------------ None Fabricated ------------ Nothing Repaired ---------- Nothing Alien Tech Used ----------------- None Achievements -------------- None Challenges ------------ None Game ------ Seed SystemNullDatajack Manual? 0 Play Time 00:27:12 Cumulative 24.2 hours Start 2025.06.06 @ 19:06:29 End 2025.06.06 @ 19:56:42 Sessions 1 Manual Loads 0 Difficulty Rogue Special Mode None Game No. 61 Rogue 52 Adventurer 9 Explorer 0 Win Type - Total 0 Types 0/0/0/0/0/0/0/0/0/0 Lore% 13 Gallery% 28 Achievement% 27 Wizard Run 0 Options --------- Layout 0 ASCII 0 Keyboard 0 Movement Numpad Keybinds 0 Fullscreen 1 Font 18/SmallcapsGlow Map View 76x50 Zoom Use 0% Tactical HUD 0 Map Filters NONE Filters NONE Steam 1 RUN: be450fe4-91c4-4782-b411-10b32279c3cc